bitfinex-derivatives/quotes_SOLF0:USTF0_20251115
["timestamp","ask_amount","ask_price","bid_price","bid_amount"]
[1763187564295,3.20914187,143.11,143.09,0.05260883]
[1763187565298,3.20914187,143.11,143.09,3.32260883]
[1763187566497,0.04914187,143.11,143.09,3.32260883]
[1763187569494,3.20914187,143.11,143.09,3.32260883]
[1763187571604,7.02914187,143.11,143.09,3.32260883]
[1763187572299,7.02914187,143.11,143.09,9.81595359]
[1763187575005,7.02914187,143.11,143.1,3.07]
[1763187575401,7.02914187,143.11,143.09,9.61595359]
[1763187577406,6.94914187,143.11,143.1,3.07]
[1763187577606,6.94914187,143.11,143.09,9.61595359]
[1763187578208,6.94914187,143.11,143.1,3.07]
[1763187580309,6.94914187,143.11,143.09,6.54595359]
[1763187580607,6.94914187,143.11,143.09,9.61595359]
[1763187581908,3.08,143.14,143.1,6.49334476]
[1763187582202,3.08,143.14,143.1,9.58460368]
[1763187582607,3.08,143.14,143.11,6.51460368]
[1763187582796,3.1280446,143.14,143.11,6.51460368]
[1763187584004,3.1280446,143.14,143.1,3.07]
[1763187587810,3.1280446,143.14,143.1,9.58460368]
[1763187593620,3.1280446,143.14,143.1,3.07]
[1763187596325,3.1280446,143.14,143.1,9.58460368]
[1763187597927,3.1280446,143.14,143.11,3.07]
[1763187599028,3.1280446,143.14,143.1,9.58460368]
[1763187600818,3.1280446,143.14,143.11,3.07]
[1763187601022,7.79,143.13,143.11,3.07]
[1763187601418,3.08,143.12,143.11,3.07]
[1763187601632,3.08,143.12,143.1,9.58460368]
[1763187602124,3.08,143.12,143.1,6.51460368]
[1763187602322,3.08,143.12,143.09,0.05260883]
[1763187602323,3.08,143.12,143.09,6.56721251]
[1763187602528,3.08,143.12,143.09,9.63721251]
[1763187603429,3.08,143.12,143.1,3.07]
[1763187605930,3.08,143.12,143.1,9.58460368]
[1763187606421,3.08,143.12,143.1,3.07]
[1763187608228,3.08,143.12,143.1,9.58460368]
[1763187613328,3.08,143.12,143.1,3.07]
[1763187613526,3.08,143.12,143.1,9.58460368]
[1763187616133,3.08,143.12,143.09,9.92721251]
[1763187617534,3.08,143.12,143.1,6.51460368]
[1763187617735,3.08,143.12,143.1,9.87460368]
[1763187619336,9.64521859,143.13,143.11,3.36]
[1763187619840,8.04,143.13,143.11,3.36]
[1763187623536,4.71,143.13,143.11,3.36]
[1763187623741,3.33,143.18,143.13,3.36]
[1763187623937,3.33,143.18,143.15,3.36]
[1763187624637,3.33,143.18,143.13,9.86356454]
[1763187624839,3.33,143.16,143.14,0.04585728]
[1763187627843,3.33,143.19,143.15,3.36]
[1763187628542,3.33,143.19,143.16,3.36]
[1763187631643,5.45,143.21,143.17,3.36]
[1763187631846,5.45,143.21,143.19,3.36]
[1763187633945,3.28,143.2,143.18,4.99070631]
[1763187634351,3.28,143.2,143.18,3.38548772]
[1763187635753,3.28,143.2,143.18,0.04548772]
[1763187636851,3.28,143.2,143.18,3.38548772]
[1763187637348,3.28,143.2,143.18,0.04548772]
[1763187638451,5.45,143.21,143.19,3.34]
[1763187638649,5.45,143.21,143.2,1.60521859]
[1763187638846,4.88521859,143.29,143.21,3.34]
[1763187639152,3.28,143.28,143.25,3.34]
[1763187639546,1.60521859,143.27,143.25,3.34]
[1763187639751,3.28,143.26,143.24,3.39294047]
[1763187639950,4.88521859,143.27,143.24,3.39294047]
[1763187640252,3.28,143.27,143.24,3.39294047]
[1763187640446,4.88521859,143.29,143.24,3.39294047]
[1763187640653,3.28,143.28,143.26,3.34]
[1763187640855,3.28,143.28,143.26,0.05091944]
[1763187641048,4.88521859,143.27,143.26,0.05091944]
[1763187641452,3.28,143.27,143.26,0.05091944]
[1763187641652,4.88521859,143.27,143.26,0.05091944]
[1763187645152,1.60521859,143.27,143.26,0.05091944]
[1763187645358,1.60521859,143.29,143.26,3.39091944]
[1763187645554,4.88521859,143.29,143.26,3.39091944]
[1763187646759,1.60521859,143.29,143.26,3.39091944]
[1763187650459,3.28,143.28,143.26,0.05091944]
[1763187651160,1.60521859,143.27,143.26,0.05091944]
[1763187651660,4.88521859,143.27,143.26,0.05091944]
[1763187654362,1.60521859,143.29,143.26,3.39091944]
[1763187654565,4.88521859,143.29,143.26,3.39091944]
[1763187656565,1.60521859,143.29,143.26,3.39091944]
[1763187656863,4.88521859,143.29,143.26,3.39091944]
[1763187658964,3.28,143.29,143.26,3.39091944]
[1763187663965,3.13,143.27,143.26,0.05091944]
[1763187670777,3.13,143.27,143.22,3.14]
[1763187671078,5.70268842,143.25,143.22,3.14]
[1763187671780,5.74715302,143.25,143.22,3.18982278]
[1763187672482,3.2,143.24,143.22,3.18982278]
[1763187675688,0.0444646,143.25,143.22,3.18982278]
[1763187679380,0.0444646,143.25,143.22,9.69338732]
[1763187679586,3.2,143.3,143.24,3.33]
[1763187680687,3.2,143.3,143.26,3.3771423]
[1763187684988,11.13268842,143.32,143.26,3.3771423]
[1763187686394,3.2,143.31,143.26,3.3771423]
[1763187687689,2.50268842,143.33,143.26,3.3771423]
[1763187687894,2.50268842,143.33,143.27,3.33]
[1763187687895,5.70268842,143.33,143.27,3.33]
[1763187688900,3.2,143.33,143.28,3.33]
[1763187689107,3.2,143.33,143.3,3.33]
[1763187690297,3.2,143.35,143.3,3.33]
[1763187690496,3.2,143.35,143.31,3.33]
[1763187690497,4.58,143.35,143.31,3.33]
[1763187690792,4.58,143.35,143.32,3.33]
[1763187690995,4.58,143.35,143.32,3.37525727]
[1763187693303,0.93841928,143.35,143.34,3.33]
[1763187696898,4.10841928,143.35,143.32,0.04525727]
[1763187697109,3.17,143.34,143.32,0.04525727]
[1763187698508,5.67268842,143.34,143.32,0.04525727]
[1763187698804,3.17,143.33,143.27,3.28]
[1763187699608,0.04999709,143.31,143.29,0.05144976]
[1763187699804,3.21999709,143.31,143.29,0.05144976]
[1763187700706,3.21999709,143.31,143.29,3.33144976]
[1763187700906,0.04999709,143.31,143.29,3.33144976]
[1763187706405,3.21999709,143.31,143.29,3.33144976]
[1763187707310,3.21999709,143.31,143.29,0.05144976]
[1763187707808,3.21999709,143.31,143.29,3.33144976]
[1763187710212,3.21999709,143.31,143.29,0.05144976]
[1763187714016,3.21999709,143.31,143.29,3.33144976]
[1763187714311,3.21999709,143.31,143.29,0.05144976]
[1763187716007,3.21999709,143.31,143.25,3.28]
[1763187717015,3.21999709,143.31,143.27,0.05351148]
[1763187717721,3.17,143.3,143.27,0.05351148]
[1763187723825,7.44,143.3,143.27,0.05351148]
[1763187724027,3.3,143.29,143.27,0.05351148]
[1763187727224,3.3,143.3,143.27,3.17351148]
[1763187728428,1.65153885,143.31,143.27,3.17351148]
[1763187728429,3.34999709,143.31,143.27,3.17351148]
[1763187728628,0.04999709,143.31,143.27,3.17351148]
[1763187729228,0.04999709,143.31,143.27,9.60251957]
[1763187729427,0.04999709,143.31,143.28,3.12]
[1763187731132,0.04999709,143.31,143.28,4.72154176]
[1763187731334,0.04999709,143.31,143.29,3.36]
[1763187732227,3.37999709,143.31,143.29,3.36]
[1763187732830,0.04999709,143.31,143.29,3.36]
[1763187736225,3.37999709,143.31,143.28,8.03054985]
[1763187736426,3.37999709,143.31,143.27,3.41351148]
[1763187754546,3.37999709,143.31,143.28,3.04]
[1763187755950,0.04999709,143.31,143.28,3.04]
[1763187756143,0.04999709,143.31,143.28,9.46900809]
[1763187756449,0.04999709,143.31,143.29,3.04]
[1763187758355,0.04999709,143.31,143.29,9.46900809]
[1763187758550,0.04999709,143.31,143.3,3.04]
[1763187764260,3.22999709,143.31,143.29,3.04]
[1763187764454,0.04999709,143.31,143.29,3.04]
[1763187770963,0.04999709,143.31,143.29,9.50925482]
[1763187771163,0.04999709,143.31,143.3,3.04]
[1763187785182,0.04999709,143.31,143.3,9.50925482]
[1763187787984,0.04999709,143.31,143.3,3.04]
[1763187788185,0.04999709,143.31,143.3,5.54117799]
[1763187789985,0.04999709,143.31,143.3,14.2073598]
[1763187793089,0.04999709,143.31,143.3,5.54117799]
[1763187793290,0.04999709,143.31,143.3,14.15262171]
[1763187795793,0.04999709,143.31,143.3,3.04]
[1763187795994,0.04999709,143.31,143.3,9.50152646]
[1763187797295,0.04999709,143.31,143.3,3.04]
[1763187797595,0.04999709,143.31,143.3,9.50280327]
[1763187798195,0.04999709,143.31,143.3,3.04]
[1763187799396,0.04999709,143.31,143.3,9.50518148]
[1763187802397,0.04999709,143.31,143.3,3.04]
[1763187802591,3.39999709,143.31,143.3,3.04]
[1763187805803,3.39999709,143.31,143.29,9.58518148]
[1763187806300,3.39999709,143.31,143.3,3.12]
[1763187813006,3.39999709,143.31,143.29,6.46518148]
[1763187813601,3.39999709,143.31,143.29,9.58518148]
[1763187814003,0.04999709,143.31,143.3,9.54518148]
[1763187814203,0.04999709,143.31,143.3,3.08]
[1763187814508,0.04999709,143.31,143.3,14.19262171]
[1763187814808,0.04999709,143.31,143.3,5.58117799]
[1763187815008,0.04999709,143.31,143.3,3.08]
[1763187816504,0.04999709,143.31,143.3,9.54878448]
[1763187817702,0.04999709,143.31,143.3,3.08]
[1763187818411,0.04999709,143.31,143.3,9.54868786]
[1763187818705,3.39999709,143.31,143.29,9.54868786]
[1763187819998,0.04999709,143.31,143.3,3.08]
[1763187820198,0.04999709,143.31,143.3,9.54868786]
[1763187820807,0.04999709,143.31,143.3,3.08]
[1763187822209,0.04999709,143.31,143.3,9.54862513]
[1763187822509,0.04999709,143.31,143.3,3.08]
[1763187823511,3.39999709,143.31,143.3,3.08]
[1763187828016,3.39999709,143.31,143.3,9.54862513]
[1763187828216,0.04999709,143.31,143.3,9.54862513]
[1763187829115,0.04999709,143.31,143.3,3.08]
[1763187830616,0.04999709,143.31,143.3,11.69144372]
[1763187832619,0.04999709,143.31,143.3,14.19262171]
[1763187833213,0.04999709,143.31,143.3,11.69144372]
[1763187839125,0.04999709,143.31,143.3,11.7000894]
[1763187839321,0.04999709,143.31,143.3,14.20126739]
[1763187839526,0.04999709,143.31,143.3,11.7000894]
[1763187840318,0.04999709,143.31,143.3,3.08]
[1763187841026,0.04999709,143.31,143.3,11.7013989]
[1763187841514,0.04999709,143.31,143.3,3.08]
[1763187844325,0.04999709,143.31,143.3,11.7013989]
[1763187845625,0.04999709,143.31,143.3,13.41573291]
[1763187848525,0.04999709,143.31,143.3,13.50145584]
[1763187850229,0.04999709,143.31,143.3,3.08]
[1763187852030,0.04999709,143.31,143.3,11.7013989]
[1763187854440,0.04999709,143.31,143.3,3.08]
[1763187854741,0.04999709,143.31,143.3,11.7013989]
[1763187859943,0.04999709,143.31,143.3,3.08]
[1763187860845,0.04999709,143.31,143.3,16.03416232]
[1763187865646,9.82,143.33,143.31,3.19]
[1763187865944,9.82,143.33,143.32,13.34885451]
[1763187866948,4.73,143.33,143.32,13.34885451]
[1763187867744,4.73,143.33,143.32,4.73313695]
[1763187872641,5.02058432,143.34,143.33,3.19]
[1763187872841,5.02058432,143.34,143.33,11.80199118]
[1763187884150,5.02058432,143.34,143.33,3.19]
[1763187888056,5.4,143.35,143.34,3.04]
[1763187888255,4.1017,143.35,143.34,17.48566005]
[1763187888562,3.11,143.42,143.35,3.04]
[1763187888764,3.11,143.42,143.39,9.48849808]
[1763187888963,3.11,143.42,143.39,9.54114061]
[1763187890268,3.11,143.42,143.39,3.09264253]
[1763187890459,1.21398172,143.49,143.39,3.09264253]
[1763187890460,3.11,143.44,143.4,3.04]
[1763187890659,3.11,143.44,143.41,0.04754422]
[1763187891154,3.11,143.44,143.41,3.08754422]
[1763187891555,3.11,143.44,143.41,0.04754422]
[1763187891755,3.11,143.44,143.41,3.08754422]
[1763187893864,3.11,143.44,143.41,9.5360423]
[1763187895470,3.11,143.44,143.41,3.08754422]
[1763187895764,3.11,143.44,143.41,0.04754422]
[1763187902375,4.65313695,143.44,143.41,0.04754422]
[1763187902572,3.11,143.43,143.41,0.04754422]
[1763187908872,3.17,143.42,143.41,0.04754422]
[1763187909283,4.57,143.42,143.41,0.04754422]
[1763187909680,3.17,143.42,143.41,0.04754422]
[1763187910279,3.17,143.42,143.37,6.43406867]
[1763187911384,3.21,143.4,143.38,0.04451279]
[1763187958123,3.21,143.4,143.34,3.15]
[1763187958124,3.13,143.39,143.34,6.44674223]
[1763187958324,3.13,143.39,143.34,9.59674223]
[1763187959020,3.13,143.37,143.35,0.04483722]
[1763187964732,3.24,143.35,143.29,11.74799744]
[1763187964932,3.24,143.34,143.29,3.15]
[1763187965225,3.24,143.34,143.3,3.15]
[1763187965725,3.29058249,143.33,143.31,0.05255292]
[1763187974522,3.23,143.32,143.31,0.05255292]
[1763187977435,2.60995302,143.33,143.31,3.34255292]
[1763187977632,2.60995302,143.33,143.32,3.29]
[1763187981841,5.83995302,143.33,143.31,0.05255292]
[1763187982041,5.83995302,143.33,143.31,3.34255292]
[1763187982534,3.23,143.32,143.31,0.05255292]
[1763187985542,3.23,143.32,143.28,3.29]
[1763187986341,3.23,143.3,143.29,0.05150283]
[1763187989638,3.23,143.3,143.25,3.29]
[1763187990741,3.23,143.3,143.26,0.04806006]
[1763187991046,3.23,143.3,143.26,3.33806006]
[1763187995050,7.65,143.29,143.26,3.33806006]
[1763187999160,7.65,143.29,143.27,3.24]
[1763188000657,4.56,143.29,143.27,3.24]
[1763188000856,4.56,143.29,143.28,4.78369673]
[1763188001559,4.56,143.29,143.28,3.24]
[1763188002863,4.56,143.29,143.28,11.83799744]
[1763188003256,4.56,143.29,143.28,3.24]
[1763188004253,4.56,143.29,143.28,11.83799744]
[1763188004458,4.51245578,143.29,143.28,13.38169417]
[1763188004860,0.05103823,143.31,143.29,3.24]
[1763188005760,0.05103823,143.31,143.3,11.83799744]
[1763188006264,0.05103823,143.31,143.3,13.38169417]
[1763188007065,0.05103823,143.31,143.3,4.78369673]
[1763188008065,0.05103823,143.31,143.3,13.39535755]
[1763188009568,0.05103823,143.31,143.3,11.85166082]
[1763188009765,0.05103823,143.31,143.3,3.24]
[1763188012361,3.14103823,143.31,143.29,8.66476639]
[1763188012667,3.14103823,143.31,143.29,0.05310557]
[1763188033691,3.14103823,143.31,143.29,6.51972845]
[1763188034092,3.14103823,143.31,143.29,0.05310557]
[1763188038396,3.14103823,143.31,143.29,3.35310557]
[1763188038697,3.14103823,143.31,143.29,0.05310557]
[1763188039996,3.14103823,143.31,143.3,6.46662288]
[1763188042198,0.05103823,143.31,143.3,9.76662288]
[1763188043690,3.26103823,143.31,143.3,6.46662288]
[1763188043891,3.26103823,143.31,143.29,6.51972845]
[1763188044186,3.26103823,143.31,143.29,0.05310557]
[1763188050506,3.26103823,143.31,143.29,6.51972845]
[1763188050904,3.26103823,143.31,143.29,0.05310557]
[1763188052110,3.26103823,143.31,143.29,6.51972845]
[1763188052806,3.26103823,143.31,143.29,0.05310557]
[1763188057214,3.26103823,143.31,143.26,6.46662288]
[1763188057215,3.36,143.3,143.26,6.46662288]
[1763188057414,3.36,143.3,143.25,6.46662288]
[1763188057807,3.36,143.3,143.24,6.46662288]
[1763188058012,3.36,143.29,143.24,6.46662288]
[1763188058213,0.05113266,143.28,143.25,0.04568598]
[1763188058416,3.36,143.27,143.25,0.04568598]
[1763188066314,3.36,143.26,143.19,6.46662288]
[1763188066517,3.36,143.26,143.18,9.66662288]
[1763188067223,3.36,143.26,143.18,3.2]
[1763188067414,3.36,143.22,143.21,0.04399969]
[1763188067822,0.04803512,143.23,143.21,3.24399969]
[1763188067823,3.40803512,143.23,143.21,3.24399969]
[1763188069218,3.40803512,143.23,143.21,0.04399969]
[1763188077936,3.40803512,143.23,143.15,3.2]
[1763188078138,3.36,143.23,143.15,3.2]
[1763188078729,3.36,143.23,143.16,3.2]
[1763188078935,0.04418566,143.21,143.19,3.2]
[1763188084942,3.64,143.26,143.2,3.22]
[1763188085431,3.64,143.26,143.25,3.22]
[1763188085939,3.06,143.25,143.24,0.04436702]
[1763188087532,3.06,143.25,143.19,3.22]
[1763188088427,0.0462566,143.23,143.21,3.26963459]
[1763188088937,0.0462566,143.23,143.22,4.76488664]
[1763188089334,0.0462566,143.23,143.22,6.16488664]
[1763188089940,3.64,143.26,143.23,3.22]
[1763188090939,3.68551731,143.26,143.23,3.22]
[1763188091538,3.68551731,143.26,143.25,3.06]
[1763188100644,3.68551731,143.26,143.25,9.52662288]
[1763188102753,3.68551731,143.26,143.25,3.06]
[1763188104757,0.04551731,143.26,143.25,3.06]
[1763188107459,3.24551731,143.26,143.24,3.10515814]
[1763188108252,3.24551731,143.26,143.24,0.04515814]
[1763188119072,3.24551731,143.26,143.24,3.39515814]
[1763188119979,3.24551731,143.26,143.24,0.04515814]
[1763188122278,3.24551731,143.26,143.24,3.39515814]
[1763188123179,3.24551731,143.26,143.24,0.04515814]
[1763188128289,3.24551731,143.26,143.24,3.39515814]
[1763188128992,0.04551731,143.26,143.24,3.39515814]
[1763188129794,3.26551731,143.26,143.24,3.39515814]
[1763188130893,3.26551731,143.26,143.24,0.04515814]
[1763188132096,3.26551731,143.26,143.24,3.39515814]
[1763188137500,0.04551731,143.26,143.24,3.39515814]
[1763188137799,0.04551731,143.26,143.25,3.35]
[1763188140799,3.26551731,143.26,143.25,3.35]
[1763188141395,0.04551731,143.26,143.25,9.81662288]
[1763188151404,3.13551731,143.26,143.24,9.73178102]
[1763188151803,3.13551731,143.26,143.25,3.22]
[1763188152006,0.04551731,143.26,143.25,3.22]
[1763188152812,0.04551731,143.26,143.25,9.68662288]
[1763188155010,0.04551731,143.26,143.25,3.22]
[1763188155511,3.13551731,143.26,143.24,3.26515814]
[1763188156609,0.04551731,143.26,143.24,3.26515814]
[1763188156819,0.04551731,143.26,143.25,3.22]
[1763188158216,0.04551731,143.26,143.25,9.68662288]
[1763188159108,0.04551731,143.26,143.25,3.22]
[1763188163114,3.13551731,143.26,143.24,3.26515814]
[1763188164116,3.13551731,143.26,143.24,9.73178102]
[1763188164318,0.04551731,143.26,143.25,3.22]
[1763188164823,0.04551731,143.26,143.25,9.68662288]
[1763188165224,0.04551731,143.26,143.25,3.22]
[1763188165426,0.04551731,143.26,143.25,9.68662288]
[1763188170924,0.04551731,143.26,143.25,3.22]
[1763188173231,0.04551731,143.26,143.25,9.68662288]
[1763188188435,3.17551731,143.26,143.25,6.46662288]
[1763188188632,3.17551731,143.26,143.24,0.04515814]
[1763188190839,7.55551731,143.26,143.24,0.04515814]
[1763188191132,3.13,143.25,143.24,0.04515814]
[1763188197439,3.13,143.25,143.24,3.14515814]
[1763188198236,3.13,143.25,143.24,0.04515814]
[1763188200836,7.68551731,143.26,143.24,3.14515814]
[1763188201032,3.13,143.25,143.24,0.04515814]
[1763188207546,3.13,143.25,143.2,9.81662288]
[1763188208538,3.05,143.23,143.21,0.04891471]
[1763188212845,4.59570744,143.23,143.21,0.04891471]
[1763188213046,3.33,143.22,143.21,0.04891471]
[1763188216853,3.33,143.22,143.15,6.46662288]
[1763188217059,3.33,143.2,143.15,9.55662288]
[1763188217353,3.33,143.2,143.16,3.09]
[1763188217961,3.3741583,143.19,143.17,0.04467261]
[1763188218160,3.33,143.18,143.17,0.04467261]
[1763188224474,3.33,143.18,143.12,3.09]
[1763188224770,1.58986574,143.19,143.12,3.09]
[1763188224771,3.33,143.15,143.12,3.09]
[1763188225367,3.38031373,143.15,143.12,3.1432931]
[1763188227274,0.05031373,143.15,143.12,3.1432931]
[1763188235877,3.28031373,143.15,143.12,3.1432931]
[1763188236686,0.05031373,143.15,143.12,3.1432931]
[1763188238488,3.28031373,143.15,143.12,3.1432931]
[1763188238691,0.05031373,143.15,143.12,3.1432931]
[1763188240289,3.23,143.2,143.15,3.15]
[1763188240480,4.45,143.21,143.15,3.15]
[1763188240678,3.23,143.2,143.15,3.15]
[1763188240883,3.23,143.19,143.15,3.15]
[1763188241388,3.27728974,143.18,143.16,3.19457028]
[1763188245091,3.27728974,143.18,143.16,0.04457028]
[1763188249889,4.89728974,143.18,143.16,0.04457028]
[1763188250095,3.23,143.17,143.16,0.04457028]
[1763188252198,8.12728974,143.18,143.16,3.19457028]
[1763188252799,8.12728974,143.18,143.16,0.04457028]
[1763188252999,3.23,143.17,143.16,0.04457028]
[1763188272209,3.23,143.17,143.12,9.80662288]
[1763188273110,3.23,143.17,143.13,0.05079417]
[1763188273408,3.23,143.17,143.13,3.39079417]
[1763188273609,3.23,143.17,143.13,9.85741705]
[1763188273814,3.23,143.17,143.13,3.39079417]
[1763188275611,8.12,143.16,143.13,9.85741705]
[1763188276213,3.18,143.15,143.13,9.85741705]
[1763188276414,3.18,143.15,143.13,3.39079417]
[1763188277414,3.18,143.15,143.13,9.85741705]
[1763188278210,4.94,143.16,143.14,3.34]
[1763188278405,4.94,143.16,143.15,9.80662288]
[1763188279405,4.89484186,143.16,143.15,9.80662288]
[1763188279609,4.89484186,143.16,143.15,11.95166082]
[1763188280117,4.89728974,143.18,143.16,3.34]
[1763188280314,4.89728974,143.18,143.17,9.84740379]
[1763188281218,4.89728974,143.18,143.17,3.34]
[1763188284819,4.89728974,143.18,143.17,9.84740379]
[1763188285623,4.89728974,143.18,143.17,3.34]
[1763188287826,4.40375202,143.18,143.17,11.24740379]
[1763188288123,4.40375202,143.18,143.17,4.74]
[1763188293331,4.40375202,143.18,143.17,11.23632215]
[1763188293531,4.40375202,143.18,143.17,4.74]
[1763188294337,4.40375202,143.18,143.17,3.34]
[1763188295236,4.40375202,143.18,143.17,9.83658412]
[1763188296039,4.40375202,143.18,143.17,3.34]
[1763188298842,4.40375202,143.18,143.17,9.8286536]
[1763188299041,4.40375202,143.18,143.17,3.34]
[1763188299241,4.40375202,143.18,143.17,9.8287197]
[1763188300044,0.04939329,143.19,143.18,3.18]
[1763188300541,0.04939329,143.19,143.18,9.6687197]
[1763188303446,0.04939329,143.19,143.18,3.18]
[1763188306546,3.10939329,143.19,143.17,3.18]
[1763188307149,3.10939329,143.19,143.16,3.23278479]
[1763188313151,3.10939329,143.19,143.16,9.72150449]
[1763188315757,3.10939329,143.19,143.16,3.23278479]
[1763188317251,3.10939329,143.19,143.16,9.72150449]
[1763188317657,3.10939329,143.19,143.17,3.18]
[1763188320054,3.10939329,143.19,143.16,3.23278479]
[1763188320249,3.10939329,143.19,143.16,0.05278479]
[1763188321260,3.10939329,143.19,143.16,6.55131984]
[1763188321759,3.10939329,143.19,143.16,0.05278479]
[1763188322261,3.10939329,143.19,143.16,3.23278479]
[1763188322461,3.10939329,143.19,143.16,9.73131984]
[1763188328666,3.10939329,143.19,143.16,9.7494387]
[1763188329963,3.10939329,143.19,143.18,6.51665391]
[1763188329964,0.04939329,143.19,143.18,6.51665391]
[1763188330168,0.04939329,143.19,143.18,9.83665391]
[1763188331263,0.04939329,143.19,143.18,3.32]
[1763188331860,0.04939329,143.19,143.18,9.83581713]
[1763188333068,0.04939329,143.19,143.18,3.32]
[1763188333266,0.04939329,143.19,143.18,11.93166082]
[1763188333463,0.04939329,143.19,143.18,3.32]
[1763188333659,0.04939329,143.19,143.18,12.00541452]
[1763188334670,0.04939329,143.19,143.18,3.32]
[1763188336869,3.19939329,143.19,143.18,6.5160846]
[1763188338081,0.04939329,143.19,143.18,9.6660846]
[1763188338771,0.04939329,143.19,143.18,3.15]
[1763188338972,0.04939329,143.19,143.18,11.83541452]
[1763188339378,0.04939329,143.19,143.18,13.38133783]
[1763188340086,0.04939329,143.19,143.18,4.69592331]
[1763188340283,0.04939329,143.19,143.18,3.15]
[1763188342583,0.04939329,143.19,143.18,11.83413526]
[1763188343278,4.45,143.24,143.19,3.15]
[1763188343578,4.45,143.24,143.22,3.15]
[1763188343779,4.45,143.24,143.22,9.66280679]
[1763188343780,7.6,143.24,143.22,9.66280679]
[1763188343976,3.15,143.24,143.22,9.66280679]
[1763188344175,3.20083483,143.24,143.22,9.71248455]
[1763188345583,3.20083483,143.24,143.22,0.04967776]
[1763188345980,3.20083483,143.24,143.22,9.71248455]
[1763188346382,3.20083483,143.24,143.22,0.04967776]
[1763188370097,3.20083483,143.24,143.18,6.51280679]
[1763188370098,3.27,143.22,143.18,6.51280679]
[1763188371107,3.27,143.22,143.19,0.05322234]
[1763188372012,3.27,143.2,143.19,0.05322234]
[1763188372302,3.31933518,143.21,143.19,3.31322234]
[1763188372609,3.31933518,143.21,143.19,0.05322234]
[1763188373502,0.04933518,143.21,143.2,3.26]
[1763188374008,0.04933518,143.21,143.2,9.77280679]
[1763188376304,0.04933518,143.21,143.2,3.26]
[1763188376908,0.04933518,143.21,143.2,9.7725861]
[1763188377409,0.04933518,143.21,143.2,3.26]
[1763188378813,0.04933518,143.21,143.2,11.94374239]
[1763188379911,0.04933518,143.21,143.2,13.34374239]
[1763188380214,0.04933518,143.21,143.2,4.66]
[1763188380516,3.27,143.27,143.21,3.26]
[1763188380716,3.27,143.27,143.25,3.26]
[1763188381618,3.31974188,143.27,143.25,3.30503736]
[1763188382114,3.31974188,143.27,143.25,9.81356629]
[1763188384219,3.31974188,143.27,143.25,3.30503736]
[1763188386617,3.31974188,143.27,143.25,0.04503736]
[1763188388615,4.83592331,143.26,143.25,0.04503736]
[1763188388815,3.29,143.25,143.21,6.50852893]
[1763188389211,3.29,143.25,143.21,9.84852893]
[1763188389916,3.29,143.25,143.22,0.04861132]
[1763188431358,3.32,143.22,143.19,6.50852893]
[1763188431556,3.32,143.22,143.17,6.50852893]
[1763188432462,3.32,143.2,143.18,0.05045165]
[1763188432860,3.32,143.2,143.18,3.17045165]
[1763188433061,3.32,143.2,143.18,0.05045165]
[1763188439563,3.32,143.2,143.18,3.17045165]
[1763188439769,3.37070516,143.21,143.19,3.12]
[1763188440470,0.05070516,143.21,143.2,3.12]
[1763188441373,0.05070516,143.21,143.2,9.62852893]
[1763188441773,0.05070516,143.21,143.2,3.12]
[1763188444172,0.05070516,143.21,143.2,9.62852893]
[1763188447377,0.05070516,143.21,143.2,3.12]
[1763188447572,7.11,143.26,143.21,3.15]
[1763188447877,7.11,143.26,143.23,3.15]
[1763188448571,3.33,143.25,143.23,3.20155652]
[1763188463795,3.33,143.25,143.23,0.05155652]
[1763188466193,6.94,143.25,143.23,0.05155652]
[1763188466605,3.03,143.24,143.23,0.05155652]
[1763188467487,3.03,143.24,143.23,3.33155652]
[1763188469199,3.03,143.24,143.23,0.05155652]
[1763188470296,3.03,143.23,143.2,6.51122479]
[1763188470503,3.03,143.23,143.2,3.28]
[1763188471395,3.07685318,143.23,143.2,3.33357713]
[1763188478010,6.32,143.22,143.2,3.33357713]
[1763188482414,3.21,143.22,143.21,3.14]
[1763188482613,3.21,143.22,143.21,9.65341061]